fUSD/lending_fUSD_20240611
["ID","MTS","AMOUNT","RATE_DAILY","PERIOD"]
[329146617,1718136657840,-2361.83,0.00021917,2]
[329146619,1718136657850,-500.0,0.00021917,2]
[329146621,1718136657860,-500.0,0.00021917,2]
[329146623,1718136657870,-500.0,0.00021917,2]
[329146625,1718136657880,-164.061106,0.00021917,2]
[329146627,1718136657890,-500.0,0.00021917,2]
[329146629,1718136657900,-503.38,0.00021917,2]
[329146631,1718136657909,-412.92,0.00021917,2]
[329146633,1718136657919,-500.0,0.00021917,2]
[329146635,1718136657929,-500.0,0.00021917,2]
[329146637,1718136657938,-500.0,0.00021917,2]
[329146639,1718136657948,-591.15,0.00021917,2]
[329146641,1718136657957,-500.0,0.00021917,2]
[329146643,1718136657967,-500.0,0.00021917,2]
[329146645,1718136657976,-500.0,0.00021917,2]
[329146646,1718136657986,-500.0,0.00021917,2]
[329146648,1718136657996,-800.37,0.00021917,2]
[329146650,1718136658007,-1027.42,0.00021917,2]
[329146652,1718136658016,-500.0,0.00021917,2]
[329146655,1718136658027,-500.0,0.00021917,2]
[329146657,1718136658037,-19781.93512778,0.00021917,2]
[329146659,1718136658047,-224.75959696,0.00021917,2]
[329146661,1718136658057,-1007.18,0.00021917,2]
[329146663,1718136658066,-221.0067,0.00021917,2]
[329146665,1718136658076,-500.0,0.00021917,2]
[329146667,1718136658086,-221.0067,0.00021917,2]
[329146669,1718136658096,-221.0067,0.00021917,2]
[329146671,1718136658106,-500.0,0.00021917,2]
[329146673,1718136658115,-221.0067,0.00021917,2]
[329146675,1718136658125,-640.53,0.00021917,2]
[329146677,1718136658134,-500.0,0.00021917,2]
[329146679,1718136658144,-500.0,0.00021917,2]
[329146680,1718136658154,-500.0,0.00021917,2]
[329146682,1718136658165,-500.0,0.00021917,2]
[329146684,1718136658175,-500.0,0.00021917,2]
[329146686,1718136658185,-221.0067,0.00021917,2]
[329146688,1718136658194,-221.0067,0.00021917,2]
[329146690,1718136658204,-151.0,0.00021917,2]
[329146692,1718136658214,-221.0067,0.00021917,2]
[329146694,1718136658228,-500.0,0.00021917,2]
[329146696,1718136658238,-151.0,0.00021917,2]
[329146698,1718136658248,-500.0,0.00021917,2]
[329146700,1718136658257,-151.0,0.00021917,2]
[329146702,1718136658267,-221.0067,0.00021917,2]
[329146704,1718136658277,-1148.06,0.00021917,2]
[329146706,1718136658286,-151.0,0.00021917,2]
[329146708,1718136658297,-582.69,0.00021917,2]
[329146710,1718136658307,-500.0,0.00021917,2]
[329146712,1718136658316,-533.43753969,0.00021917,2]
[329146714,1718136658326,-824.37,0.00021917,2]
[329146716,1718136658338,-500.0,0.00021917,2]
[329146719,1718136658348,-151.0,0.00021917,2]
[329146721,1718136658358,-500.0,0.00021917,2]
[329146723,1718136658368,-500.0,0.00021917,2]
[329146725,1718136658378,-7760.04,0.00021917,2]
[329146726,1718136658388,-500.0,0.00021917,2]
[329146728,1718136658398,-500.0,0.00021917,2]
[329146730,1718136658408,-500.0,0.00021917,2]
[329146732,1718136658418,-500.0,0.00021917,2]
[329146733,1718136658428,-500.0,0.00021917,2]
[329146734,1718136658438,-528.65849489,0.00021917,2]
[329146735,1718136658448,-1919.48,0.00021917,2]
[329146736,1718136658458,-500.0,0.00021917,2]
[329146737,1718136658467,-508.197952,0.00021917,2]
[329146738,1718136658477,-500.0,0.00021917,2]
[329146739,1718136658487,-500.0,0.00021917,2]
[329146741,1718136658496,-500.0,0.00021917,2]
[329146743,1718136658506,-218.36299953,0.00021917,2]
[329146745,1718136658515,-500.0,0.00021917,2]
[329146747,1718136658526,-1971.12,0.00021917,2]
[329146749,1718136658535,-839.1,0.00021917,2]
[329146751,1718136658545,-500.0,0.00021917,2]
[329146753,1718136658556,-500.0,0.00021917,2]
[329146755,1718136658565,-500.0,0.00021917,2]
[329146757,1718136658575,-500.0,0.00021917,2]
[329146759,1718136658584,-500.0,0.00021917,2]
[329146761,1718136658594,-500.0,0.00021917,2]
[329146763,1718136658605,-581.49,0.00021917,2]
[329146765,1718136658615,-211.01248694,0.00021917,2]
[329146767,1718136658625,-151.0,0.00021917,2]
[329146769,1718136658636,-500.0,0.00021917,2]
[329146771,1718136658649,-526.91746561,0.00021917,2]
[329146773,1718136658662,-500.0,0.00021917,2]
[329146775,1718136658672,-500.0,0.00021917,2]
[329146777,1718136658681,-500.0,0.00021917,2]
[329146779,1718136658692,-166.0,0.00021917,2]
[329146781,1718136658702,-500.0,0.00021917,2]
[329146783,1718136658712,-3054.71,0.00021917,2]
[329146785,1718136658721,-2236.93,0.00021917,2]
[329146787,1718136658730,-1057.92,0.00021917,2]
[329146789,1718136658744,-500.0,0.00021917,2]
[329146791,1718136658753,-1557.0,0.00021917,2]
[329146793,1718136658763,-197.37606329,0.00021917,2]
[329146795,1718136658772,-543.38990627,0.00021917,2]
[329146797,1718136658782,-500.0,0.00021917,2]
[329146799,1718136658792,-2685.28,0.00021917,2]
[329146801,1718136658801,-500.0,0.00021917,2]
[329146803,1718136658813,-1004.53,0.00021917,2]
[329146805,1718136658825,-500.0,0.00021917,2]
[329146807,1718136658834,-17699.11,0.00021917,2]
[329146809,1718136658845,-2804.34,0.00021917,2]
[329146811,1718136658855,-151.0,0.00021917,2]
[329146813,1718136658865,-2457.13,0.00021917,2]
[329146815,1718136658875,-151.0,0.00021917,2]
[329146817,1718136658884,-151.0,0.00021917,2]
[329146819,1718136658894,-500.0,0.00021917,2]
[329146821,1718136658904,-500.0,0.00021917,2]
[329146823,1718136658914,-151.0,0.00021917,2]
[329146825,1718136658924,-395.10820604,0.00021917,2]
[329146827,1718136658933,-500.0,0.00021917,2]
[329146829,1718136658943,-500.0,0.00021917,2]
[329146831,1718136658952,-604.85632232,0.00021917,2]
[329146833,1718136658962,-500.0,0.00021917,2]
[329146835,1718136658971,-1843.73,0.00021917,2]
[329146837,1718136658981,-500.0,0.00021917,2]
[329146839,1718136658992,-500.0,0.00021917,2]
[329146841,1718136659002,-500.0,0.00021917,2]
[329146843,1718136659012,-834.61,0.00021917,2]
[329146845,1718136659022,-4855.92,0.00021917,2]
[329146847,1718136659031,-161.566814,0.00021917,2]
[329146849,1718136659041,-500.0,0.00021917,2]
[329146851,1718136659051,-502.5,0.00021917,2]
[329146853,1718136659061,-500.0,0.00021917,2]
[329146855,1718136659070,-500.0,0.00021917,2]
[329146857,1718136659080,-161.566814,0.00021917,2]
[329146859,1718136659090,-161.566814,0.00021917,2]
[329146861,1718136659101,-161.566814,0.00021917,2]
[329146863,1718136659111,-500.0,0.00021917,2]
[329146865,1718136659121,-500.0,0.00021917,2]
[329146867,1718136659131,-500.0,0.00021917,2]
[329146869,1718136659140,-500.0,0.00021917,2]
[329146871,1718136659150,-4842.03,0.00021917,2]
[329146873,1718136659160,-161.566814,0.00021917,2]
[329146875,1718136659170,-161.566814,0.00021917,2]
[329146877,1718136659180,-7742.09,0.00021917,2]
[329146879,1718136659189,-161.566814,0.00021917,2]
[329146881,1718136659199,-161.566814,0.00021917,2]
[329146883,1718136659209,-1237.53,0.00021917,2]
[329146885,1718136659219,-1043.35,0.00021917,2]
[329146887,1718136659229,-500.0,0.00021917,2]
[329146889,1718136659239,-572.5,0.00021917,2]
[329146891,1718136659249,-500.0,0.00021917,2]
[329146893,1718136659259,-500.0,0.00021917,2]
[329146895,1718136659269,-500.0,0.00021917,2]
[329146897,1718136659279,-500.0,0.00021917,2]
[329146899,1718136659289,-45185.71,0.00021917,2]
[329146901,1718136659299,-500.0,0.00021917,2]
[329146903,1718136659309,-500.0,0.00021917,2]
[329146905,1718136659320,-505.35337455,0.00021917,2]
[329146907,1718136659330,-500.0,0.00021917,2]
[329146909,1718136659339,-500.0,0.00021917,2]
[329146910,1718136659349,-855.22,0.00021917,2]
[329146911,1718136659359,-1855.29,0.00021917,2]
[329146912,1718136659367,-500.0,0.00021917,2]
[329146913,1718136659377,-500.0,0.00021917,2]
[329146914,1718136659386,-151.0,0.00021917,2]
[329146915,1718136659395,-500.0,0.00021917,2]
[329146916,1718136659404,-1424.55,0.00021917,2]
[329146917,1718136659414,-151.0,0.00021917,2]
[329146918,1718136659423,-500.0,0.00021917,2]
[329146919,1718136659432,-708.29,0.00021917,2]
[329146920,1718136659441,-639.46,0.00021917,2]
[329146921,1718136659451,-802.08,0.00021917,2]
[329146922,1718136659461,-510.92,0.00021917,2]
[329146923,1718136659471,-2990.99,0.00021917,2]
[329146924,1718136659480,-500.0,0.00021917,2]
[329146925,1718136659489,-500.0,0.00021917,2]
[329146926,1718136659499,-417.20500177,0.00021917,2]
[329146927,1718136659507,-566.88260376,0.00021917,2]
[329146928,1718136659517,-2676.54,0.00021917,2]
[329146929,1718136659528,-500.0,0.00021917,2]
[329146931,1718136659538,-2412.0,0.00021917,2]
[329146933,1718136659548,-500.0,0.00021917,2]
[329146935,1718136659558,-500.0,0.00021917,2]
[329146937,1718136659569,-1082.08,0.00021917,2]
[329146939,1718136659578,-500.0,0.00021917,2]
[329146941,1718136659587,-7909.16,0.00021917,2]
[329146943,1718136659597,-294.12695373,0.00021917,2]
[329146945,1718136659607,-978.57,0.00021917,2]
[329146947,1718136659617,-500.0,0.00021917,2]
[329146949,1718136659627,-2262.79,0.00021917,2]
[329146951,1718136659636,-1802.34,0.00021917,2]
[329146953,1718136659646,-647.3,0.00021917,2]
[329146955,1718136659658,-569.09,0.00021917,2]
[329146957,1718136659669,-3237.23,0.00021917,2]
[329146959,1718136659679,-500.0,0.00021917,2]
[329146961,1718136659689,-500.0,0.00021917,2]
[329146963,1718136659699,-3246.44,0.00021917,2]
[329146965,1718136659708,-613.19,0.00021917,2]
[329146967,1718136659718,-500.0,0.00021917,2]
[329146969,1718136659729,-500.0,0.00021917,2]
[329146971,1718136659739,-500.0,0.00021917,2]
[329146973,1718136659749,-500.0,0.00021917,2]
[329146975,1718136659759,-607.8,0.00021917,2]
[329146976,1718136659768,-500.0,0.00021917,2]
[329146977,1718136659778,-500.0,0.00021917,2]
[329146978,1718136659787,-151.0,0.00021917,2]
[329146979,1718136659796,-500.0,0.00021917,2]
[329146980,1718136659809,-151.0,0.00021917,2]
[329146981,1718136659819,-1136.01,0.00021917,2]
[329146982,1718136659829,-500.0,0.00021917,2]
[329146983,1718136659838,-151.0,0.00021917,2]
[329146985,1718136659848,-151.0,0.00021917,2]
[329146987,1718136659858,-16478.26,0.00021917,2]
[329146989,1718136659870,-2348.44,0.00021917,2]
[329146991,1718136659880,-500.0,0.00021917,2]
[329146993,1718136659889,-5492.28,0.00021917,2]
[329146995,1718136659901,-151.0,0.00021917,2]
[329146997,1718136659912,-500.0,0.00021917,2]
[329146999,1718136659922,-383.44445368,0.00021917,2]
[329147001,1718136659931,-879.6,0.00021917,2]
[329147003,1718136659941,-151.0,0.00021917,2]
[329147004,1718136659951,-2266.35,0.00021917,2]
[329147005,1718136659961,-151.0,0.00021917,2]
[329147006,1718136659971,-151.0,0.00021917,2]
[329147007,1718136659980,-151.0,0.00021917,2]
[329147008,1718136659989,-151.0,0.00021917,2]
[329147009,1718136660000,-500.0,0.00021917,2]
[329147010,1718136660011,-185.68176,0.00021917,2]
[329147011,1718136660021,-534.86434734,0.00021917,2]
[329147012,1718136660031,-500.0,0.00021917,2]
[329147013,1718136660041,-1499.24,0.00021917,2]
[329147014,1718136660052,-666.12,0.00021917,2]
[329147015,1718136660063,-1004.71,0.00021917,2]
[329147016,1718136660073,-500.0,0.00021917,2]
[329147017,1718136660083,-500.0,0.00021917,2]
[329147018,1718136660093,-2307.63,0.00021917,2]
[329147019,1718136660104,-500.0,0.00021917,2]
[329147020,1718136660114,-500.0,0.00021917,2]
[329147021,1718136660124,-151.0,0.00021917,2]
[329147022,1718136660133,-151.0,0.00021917,2]
[329147023,1718136660143,-151.0,0.00021917,2]
[329147024,1718136660154,-500.0,0.00021917,2]
[329147025,1718136660164,-246.07496,0.00021917,2]
[329147026,1718136660173,-500.0,0.00021917,2]
[329147027,1718136660183,-1538.77,0.00021917,2]
[329147028,1718136660193,-1713.97,0.00021917,2]
[329147029,1718136660203,-500.0,0.00021917,2]
[329147030,1718136660213,-500.0,0.00021917,2]
[329147031,1718136660223,-500.0,0.00021917,2]
[329147032,1718136660233,-2091.97,0.00021917,2]
[329147033,1718136660244,-500.0,0.00021917,2]
[329147034,1718136660254,-4084.54,0.00021917,2]
[329147035,1718136660264,-209.88969386,0.00021917,2]
[329147036,1718136660274,-1167.09,0.00021917,2]
[329147037,1718136660284,-488.6641894,0.00021917,2]
[329147038,1718136660294,-500.0,0.00021917,2]
[329147039,1718136660303,-509.37697927,0.00021917,2]
[329147040,1718136660313,-500.0,0.00021917,2]
[329147041,1718136660324,-177.727756,0.00021917,2]
[329147042,1718136660334,-31209.56,0.00021917,2]
[329147043,1718136660345,-500.0,0.00021917,2]
[329147044,1718136660355,-151.0,0.00021917,2]
[329147045,1718136660365,-177.727756,0.00021917,2]
[329147046,1718136660375,-151.0,0.00021917,2]
[329147047,1718136660386,-177.727756,0.00021917,2]
[329147048,1718136660396,-1310.5,0.00021917,2]
[329147049,1718136660406,-151.0,0.00021917,2]
[329147050,1718136660417,-177.727756,0.00021917,2]
[329147051,1718136660428,-151.0,0.00021917,2]
[329147052,1718136660439,-532.92,0.00021917,2]
[329147053,1718136660450,-2155.74,0.00021917,2]
[329147054,1718136660460,-1636.22,0.00021917,2]
[329147055,1718136660469,-543.08,0.00021917,2]
[329147056,1718136660479,-151.0,0.00021917,2]
[329147057,1718136660489,-177.727756,0.00021917,2]
[329147058,1718136660499,-1081.45,0.00021917,2]
[329147059,1718136660510,-177.727756,0.00021917,2]
[329147060,1718136660520,-177.727756,0.00021917,2]
[329147061,1718136660531,-3421.99,0.00021917,2]
[329147062,1718136660541,-1609.03,0.00021917,2]
[329147063,1718136660551,-151.0,0.00021917,2]
[329147064,1718136660561,-177.727756,0.00021917,2]
[329147065,1718136660571,-5165.85,0.00021917,2]
[329147066,1718136660581,-500.0,0.00021917,2]
[329147067,1718136660591,-697.68,0.00021917,2]
[329147068,1718136660601,-151.0,0.00021917,2]
[329147069,1718136660611,-151.0,0.00021917,2]
[329147070,1718136660621,-500.0,0.00021917,2]
[329147071,1718136660631,-500.0,0.00021917,2]
[329147072,1718136660641,-469.49237721,0.00021917,2]
[329147073,1718136660654,-500.0,0.00021917,2]
[329147074,1718136660664,-500.0,0.00021917,2]
[329147075,1718136660673,-151.0,0.00021917,2]
[329147076,1718136660683,-164.008862,0.00021917,2]
[329147077,1718136660694,-500.0,0.00021917,2]
[329147078,1718136660704,-248.686917,0.00021917,2]
[329147079,1718136660714,-951.57,0.00021917,2]
[329147080,1718136660724,-1247.22,0.00021917,2]
[329147081,1718136660734,-2689.69,0.00021917,2]
[329147082,1718136660745,-500.0,0.00021917,2]
[329147083,1718136660755,-500.0,0.00021917,2]
[329147084,1718136660765,-500.0,0.00021917,2]
[329147085,1718136660775,-8688.79,0.00021917,2]
[329147086,1718136660784,-500.0,0.00021917,2]
[329147087,1718136660795,-500.0,0.00021917,2]
[329147088,1718136660807,-2338.04,0.00021917,2]
[329147089,1718136660826,-3161.94,0.00021917,2]
[329147090,1718136660837,-500.0,0.00021917,2]
[329147091,1718136660847,-500.0,0.00021917,2]
[329147092,1718136660858,-500.0,0.00021917,2]
[329147093,1718136660867,-500.0,0.00021917,2]
[329147094,1718136660877,-500.0,0.00021917,2]
[329147095,1718136660887,-2177.23,0.00021917,2]
[329147096,1718136660897,-500.0,0.00021917,2]
[329147097,1718136660906,-1561.52,0.00021917,2]
[329147098,1718136660917,-500.0,0.00021917,2]
[329147099,1718136660926,-508.97554782,0.00021917,2]
[329147100,1718136660936,-500.0,0.00021917,2]
[329147101,1718136660946,-151.0,0.00021917,2]
[329147102,1718136660955,-775.42,0.00021917,2]
[329147103,1718136660965,-617.7,0.00021917,2]
[329147104,1718136660974,-151.0,0.00021917,2]
[329147105,1718136660984,-500.0,0.00021917,2]
[329147106,1718136660993,-500.0,0.00021917,2]
[329147107,1718136661003,-300.783705,0.00021917,2]
[329147108,1718136661012,-2111.79,0.00021917,2]
[329147109,1718136661022,-151.0,0.00021917,2]
[329147110,1718136661031,-151.0,0.00021917,2]
[329147111,1718136661041,-616.27,0.00021917,2]
[329147112,1718136661050,-1959.1,0.00021917,2]
[329147113,1718136661060,-500.0,0.00021917,2]
[329147114,1718136661070,-2387.25,0.00021917,2]
[329147115,1718136661080,-500.0,0.00021917,2]
[329147116,1718136661090,-500.0,0.00021917,2]
[329147117,1718136661101,-500.0,0.00021917,2]
[329147118,1718136661110,-151.0,0.00021917,2]
[329147119,1718136661120,-500.0,0.00021917,2]
[329147120,1718136661130,-151.0,0.00021917,2]
[329147121,1718136661140,-151.0,0.00021917,2]
[329147122,1718136661149,-151.0,0.00021917,2]
[329147123,1718136661160,-519.31940139,0.00021917,2]
[329147124,1718136661172,-500.0,0.00021917,2]
[329147125,1718136661181,-500.0,0.00021917,2]
[329147126,1718136661192,-7811.91,0.00021917,2]
[329147127,1718136661201,-151.0,0.00021917,2]
[329147128,1718136661211,-1328.09,0.00021917,2]
[329147129,1718136661221,-500.0,0.00021917,2]
[329147130,1718136661231,-4226.04,0.00021917,2]
[329147131,1718136661242,-500.0,0.00021917,2]
[329147132,1718136661251,-1120.17,0.00021917,2]
[329147133,1718136661262,-151.0,0.00021917,2]
[329147134,1718136661272,-500.0,0.00021917,2]
[329147135,1718136661282,-500.0,0.00021917,2]
[329147136,1718136661292,-2294.69,0.00021917,2]
[329147137,1718136661303,-500.0,0.00021917,2]
[329147138,1718136661314,-500.0,0.00021917,2]
[329147139,1718136661324,-151.0,0.00021917,2]
[329147140,1718136661336,-500.0,0.00021917,2]
[329147141,1718136661346,-1077.36,0.00021917,2]
[329147142,1718136661356,-2188.87,0.00021917,2]
[329147143,1718136661573,-642.3,0.00021917,2]
[329147144,1718136661584,-955.95,0.00021917,2]
[329147145,1718136661595,-573.76,0.00021917,2]
[329147146,1718136661605,-500.0,0.00021917,2]
[329147147,1718136661615,-517.81,0.00021917,2]
[329147148,1718136661626,-500.0,0.00021917,2]
[329147149,1718136661636,-5864.34,0.00021917,2]
[329147150,1718136661646,-500.0,0.00021917,2]
[329147151,1718136661656,-528.23485998,0.00021917,2]
[329147152,1718136661673,-573.03,0.00021917,2]
[329147153,1718136661683,-5679.17,0.00021917,2]
[329147154,1718136661693,-710.01,0.00021917,2]
[329147155,1718136661703,-500.0,0.00021917,2]
[329147156,1718136661712,-500.0,0.00021917,2]
[329147157,1718136661722,-500.0,0.00021917,2]
[329147158,1718136661735,-1127.14,0.00021917,2]
[329147159,1718136661745,-151.0,0.00021917,2]
[329147160,1718136661756,-569.35,0.00021917,2]
[329147161,1718136661766,-151.0,0.00021917,2]
[329147162,1718136661777,-151.0,0.00021917,2]
[329147163,1718136661787,-151.0,0.00021917,2]
[329147164,1718136661798,-3190.5,0.00021917,2]
[329147165,1718136661822,-500.0,0.00021917,2]
[329147166,1718136661837,-500.0,0.00021917,2]
[329147167,1718136661848,-2109.6,0.00021917,2]
[329147168,1718136661859,-5574.07,0.00021917,2]
[329147169,1718136661870,-1970.07,0.00021917,2]
[329147170,1718136661880,-500.0,0.00021917,2]
[329147171,1718136661891,-500.0,0.00021917,2]
[329147172,1718136661901,-622.04226319,0.00021917,2]
[329147173,1718136661915,-4477.87,0.00021917,2]
[329147174,1718136661925,-3860.05,0.00021917,2]
[329147175,1718136661935,-151.0,0.00021917,2]
[329147176,1718136661945,-151.0,0.00021917,2]
[329147177,1718136661955,-151.0,0.00021917,2]
[329147178,1718136661965,-500.0,0.00021917,2]
[329147179,1718136661975,-151.0,0.00021917,2]
[329147180,1718136661985,-607.39,0.00021917,2]
[329147181,1718136661996,-500.0,0.00021917,2]
[329147182,1718136662006,-151.0,0.00021917,2]
[329147183,1718136662017,-500.0,0.00021917,2]
[329147184,1718136662027,-637.92,0.00021917,2]
[329147185,1718136662038,-500.0,0.00021917,2]
[329147186,1718136662048,-500.0,0.00021917,2]
[329147187,1718136662058,-151.0,0.00021917,2]
[329147188,1718136662068,-637.92,0.00021917,2]
[329147189,1718136662078,-151.0,0.00021917,2]
[329147190,1718136662088,-637.92,0.00021917,2]
[329147191,1718136662098,-637.92,0.00021917,2]
[329147192,1718136662108,-17695.23,0.00021917,2]
[329147193,1718136662119,-151.0,0.00021917,2]
[329147194,1718136662129,-637.92,0.00021917,2]
[329147195,1718136662139,-1155.41,0.00021917,2]
[329147196,1718136662149,-637.92,0.00021917,2]
[329147197,1718136662159,-637.92,0.00021917,2]
[329147198,1718136662171,-637.92,0.00021917,2]
[329147199,1718136662180,-500.0,0.00021917,2]
[329147200,1718136662190,-637.92,0.00021917,2]
[329147201,1718136662201,-637.92,0.00021917,2]
[329147202,1718136662211,-151.0,0.00021917,2]
[329147203,1718136662221,-620.42,0.00021917,2]
[329147204,1718136662231,-500.0,0.00021917,2]
[329147205,1718136662241,-500.0,0.00021917,2]
[329147206,1718136662251,-151.0,0.00021917,2]
[329147207,1718136662262,-151.0,0.00021917,2]
[329147208,1718136662271,-151.0,0.00021917,2]
[329147209,1718136662282,-500.0,0.00021917,2]
[329147210,1718136662292,-672.98,0.00021917,2]
[329147211,1718136662302,-500.0,0.00021917,2]
[329147212,1718136662312,-4558.34,0.00021917,2]
[329147213,1718136662322,-513.03627354,0.00021917,2]
[329147214,1718136662332,-650.4,0.00021917,2]
[329147215,1718136662342,-2649.05,0.00021917,2]
[329147216,1718136662352,-500.0,0.00021917,2]
[329147217,1718136662362,-500.0,0.00021917,2]
[329147218,1718136662372,-4351.78,0.00021917,2]
[329147219,1718136662381,-500.0,0.00021917,2]
[329147220,1718136662391,-500.0,0.00021917,2]
[329147221,1718136662400,-3656.98,0.00021917,2]
[329147222,1718136662411,-1378.58,0.00021917,2]
[329147223,1718136662423,-500.0,0.00021917,2]
[329147224,1718136662433,-574.77276461,0.00021917,2]
[329147225,1718136662445,-500.0,0.00021917,2]
[329147226,1718136662455,-500.0,0.00021917,2]
[329147227,1718136662465,-500.0,0.00021917,2]
[329147228,1718136662475,-1158.64,0.00021917,2]
[329147229,1718136662484,-512.99591555,0.00021917,2]
[329147230,1718136662494,-6161.14,0.00021917,2]
[329147231,1718136662504,-1133.63,0.00021917,2]
[329147232,1718136662514,-3554.16,0.00021917,2]
[329147233,1718136662524,-500.0,0.00021917,2]
[329147234,1718136662534,-500.0,0.00021917,2]
[329147235,1718136662544,-500.0,0.00021917,2]
[329147236,1718136662554,-1339.46,0.00021917,2]
[329147237,1718136662565,-1859.05,0.00021917,2]
[329147238,1718136662575,-500.0,0.00021917,2]
[329147239,1718136662586,-500.0,0.00021917,2]
[329147240,1718136662596,-500.0,0.00021917,2]
[329147241,1718136662606,-500.0,0.00021917,2]
[329147242,1718136662616,-6728.46,0.00021917,2]
[329147243,1718136662626,-500.0,0.00021917,2]
[329147244,1718136662636,-500.0,0.00021917,2]
[329147245,1718136662647,-4311.77,0.00021917,2]
[329147246,1718136662664,-12517.22,0.00021917,2]
[329147247,1718136662674,-500.0,0.00021917,2]
[329147248,1718136662683,-500.0,0.00021917,2]
[329147249,1718136662696,-500.0,0.00021917,2]
[329147250,1718136662706,-5522.89,0.00021917,2]
[329147251,1718136662716,-1684.61,0.00021917,2]
[329147252,1718136662726,-5695.27,0.00021917,2]
[329147253,1718136662738,-506.50538559,0.00021917,2]
[329147254,1718136662747,-1444.35,0.00021917,2]
[329147255,1718136662757,-500.0,0.00021917,2]
[329147256,1718136662767,-640.83,0.00021917,2]
[329147257,1718136662777,-2920.52,0.00021917,2]
[329147258,1718136662787,-781.02,0.00021917,2]
[329147259,1718136662797,-500.0,0.00021917,2]
[329147260,1718136662812,-1902.92,0.00021917,2]
[329147261,1718136662825,-2770.53,0.00021917,2]
[329147262,1718136662836,-500.0,0.00021917,2]
[329147263,1718136662846,-151.0,0.00021917,2]
[329147264,1718136662856,-151.0,0.00021917,2]
[329147265,1718136662865,-151.0,0.00021917,2]
[329147266,1718136662875,-6999.05,0.00021917,2]
[329147267,1718136662886,-151.0,0.00021917,2]
[329147268,1718136662896,-866.84,0.00021917,2]
[329147269,1718136662907,-500.0,0.00021917,2]
[329147270,1718136662919,-507.53546645,0.00021917,2]
[329147271,1718136662928,-151.0,0.00021917,2]
[329147272,1718136662939,-4453.61,0.00021917,2]
[329147273,1718136662950,-7801.74,0.00021917,2]
[329147274,1718136662961,-500.0,0.00021917,2]
[329147275,1718136662973,-500.0,0.00021917,2]
[329147276,1718136662983,-1206.36,0.00021917,2]
[329147277,1718136662993,-1037.68,0.00021917,2]
[329147278,1718136663003,-500.0,0.00021917,2]
[329147279,1718136663013,-9231.35,0.00021917,2]
[329147280,1718136663023,-370.30784975,0.00021917,2]
[329147281,1718136663033,-622.93168297,0.00021917,2]
[329147282,1718136663044,-433.60446431,0.00021917,2]
[329147283,1718136663350,-3592.36737861,0.00021917,2]
[329147284,1718136663362,-1691.98689266,0.00021917,2]
[329147285,1718137751183,-2870.91,0.0001306,2]
[329147297,1718137832995,-411.34,0.00017875,2]
[329147298,1718137833006,-262.59,0.000185,2]
[329147299,1718137833030,-511.41,0.000185,2]
[329147300,1718137833042,-2458.0,0.000185,2]
[329147301,1718137833058,-2022.0,0.000185,2]
[329147302,1718137833069,-758.24390293,0.00018805,2]